[Event "Early-Titled-Tuesday-Blitz-October-17-2023"]
[Site "Chess.com"]
[Date "2023.10.17"]
[Round "5"]
[White "Maluco_do_Natal_00"]
[Black "HanSchut"]
[Result "0-1"]
[WhiteElo "1995"]
[BlackElo "2316"]
[TimeControl "180+1"]
[EndTime "8:55:10 PDT"]
[Termination "HanSchut won by checkmate"]

1. e4 {[%clk 0:03:00.9]} 1... c5 {[%clk 0:02:46.4]} 2. Nf3 {[%clk 0:03:00.3]}
2... d6 {[%clk 0:02:46.2]} 3. d4 {[%clk 0:03:00.9]} 3... cxd4 {[%clk 0:02:47.1]}
4. Nxd4 {[%clk 0:03:01.5]} 4... Nf6 {[%clk 0:02:47.7]} 5. Nc3 {[%clk 0:03:01.8]}
5... a6 {[%clk 0:02:48.3]} 6. Be3 {[%clk 0:03:01.7]} 6... e5 {[%clk 0:02:48.5]}
7. Nb3 {[%clk 0:03:01.9]} 7... Be6 {[%clk 0:02:49]} 8. f3 {[%clk 0:03:02.2]}
8... Be7 {[%clk 0:02:48.5]} 9. Qd2 {[%clk 0:03:02.5]} 9... O-O {[%clk
0:02:48.8]} 10. O-O-O {[%clk 0:03:02]} 10... Nbd7 {[%clk 0:02:49.4]} 11. g4
{[%clk 0:03:01.8]} 11... b5 {[%clk 0:02:50]} 12. g5 {[%clk 0:03:01.8]} 12... b4
{[%clk 0:02:50.3]} 13. Ne2 {[%clk 0:03:02.3]} 13... Ne8 {[%clk 0:02:49.2]} 14.
f4 {[%clk 0:02:40.1]} 14... a5 {[%clk 0:02:48.6]} 15. Kb1 {[%clk 0:02:39.5]}
15... Bxb3 {[%clk 0:02:45.9]} 16. cxb3 {[%clk 0:02:36.2]} 16... a4 {[%clk
0:02:45.7]} 17. bxa4 {[%clk 0:02:24]} 17... Rxa4 {[%clk 0:02:46.6]} 18. f5
{[%clk 0:02:13.2]} 18... Rxa2 {[%clk 0:02:45.1]} 19. Kxa2 {[%clk 0:02:05.4]}
19... Qa8+ {[%clk 0:02:43.6]} 20. Kb3 {[%clk 0:01:55.4]} 20... Bxg5 {[%clk
0:02:37.5]} 21. Ng3 {[%clk 0:01:24]} 21... Nc5+ {[%clk 0:02:24.8]} 22. Kxb4
{[%clk 0:00:30]} 22... Qa4+ {[%clk 0:02:10.9]} 23. Kc3 {[%clk 0:00:07.6]} 23...
Qb3# {[%clk 0:02:09.4]} 0-1

[Event "Early-Titled-Tuesday-Blitz-October-17-2023"]
[Site "Chess.com"]
[Date "2023.10.17"]
[Round "5"]
[White "The_Machine04"]
[Black "surrenderPLS"]
[Result "1-0"]
[WhiteElo "2688"]
[BlackElo "2506"]
[TimeControl "180+1"]
[EndTime "8:55:21 PDT"]
[Termination "The_Machine04 won by resignation"]

1. d4 {[%clk 0:03:00.9]} 1... Nf6 {[%clk 0:02:59.6]} 2. Nf3 {[%clk 0:03:00.9]}
2... e6 {[%clk 0:02:59.4]} 3. Nbd2 {[%clk 0:03:00.8]} 3... d5 {[%clk 0:02:51]}
4. e3 {[%clk 0:03:01.2]} 4... c5 {[%clk 0:02:47.9]} 5. c3 {[%clk 0:03:01.3]}
5... Nc6 {[%clk 0:02:45.1]} 6. Bd3 {[%clk 0:03:01.2]} 6... c4 {[%clk 0:02:43.3]}
7. Bc2 {[%clk 0:03:01.4]} 7... b5 {[%clk 0:02:43.7]} 8. O-O {[%clk 0:03:01.6]}
8... Bb7 {[%clk 0:02:41.7]} 9. e4 {[%clk 0:03:02]} 9... dxe4 {[%clk 0:02:39.6]}
10. Nxe4 {[%clk 0:03:02.9]} 10... Be7 {[%clk 0:02:39.5]} 11. Qe2 {[%clk
0:03:02.3]} 11... O-O {[%clk 0:02:38.8]} 12. Re1 {[%clk 0:03:02.3]} 12... Nd5
{[%clk 0:02:36.2]} 13. Bg5 {[%clk 0:02:59.5]} 13... h6 {[%clk 0:02:35.3]} 14.
Bd2 {[%clk 0:02:57.7]} 14... a6 {[%clk 0:02:34.4]} 15. Rad1 {[%clk 0:02:57.3]}
15... Qc7 {[%clk 0:02:33.2]} 16. a3 {[%clk 0:02:57.2]} 16... Rad8 {[%clk
0:02:30.9]} 17. g3 {[%clk 0:02:57.3]} 17... Rfe8 {[%clk 0:02:26.4]} 18. h4
{[%clk 0:02:57.2]} 18... Bf8 {[%clk 0:01:25.6]} 19. Bc1 {[%clk 0:02:55.3]} 19...
f5 {[%clk 0:01:18.7]} 20. Neg5 {[%clk 0:02:51.5]} 20... hxg5 {[%clk 0:01:16.6]}
21. Nxg5 {[%clk 0:02:52.4]} 21... g6 {[%clk 0:00:49.9]} 22. h5 {[%clk
0:02:52.5]} 22... e5 {[%clk 0:00:48]} 23. hxg6 {[%clk 0:02:50.8]} 23... exd4
{[%clk 0:00:47.7]} 24. Qh5 {[%clk 0:02:43.7]} 24... d3 {[%clk 0:00:34.1]} 25.
Rxe8 {[%clk 0:02:41.1]} 25... Rxe8 {[%clk 0:00:28]} 26. g7 {[%clk 0:02:41]}
26... Qxg7 {[%clk 0:00:27.7]} 27. Qxe8 {[%clk 0:02:40.8]} 27... dxc2 {[%clk
0:00:27.9]} 28. Rxd5 {[%clk 0:02:39.9]} 28... Ne7 {[%clk 0:00:23.1]} 29. Rd8
{[%clk 0:02:27.3]} 29... Qh6 {[%clk 0:00:19.7]} 30. Qf7+ {[%clk 0:02:27.3]}
30... Kh8 {[%clk 0:00:20]} 31. Rxf8+ {[%clk 0:02:27.9]} 31... Qxf8 {[%clk
0:00:19.9]} 32. Qxf8+ {[%clk 0:02:28.8]} 32... Ng8 {[%clk 0:00:20.8]} 33. Nf7+
{[%clk 0:02:26.3]} 33... Kh7 {[%clk 0:00:20.8]} 34. Ng5+ {[%clk 0:02:18.2]}
34... Kh8 {[%clk 0:00:20.9]} 35. Ne6 {[%clk 0:02:18.3]} 1-0

[Event "Early-Titled-Tuesday-Blitz-October-17-2023"]
[Site "Chess.com"]
[Date "2023.10.17"]
[Round "5"]
[White "supereagles1201"]
[Black "DonCiao"]
[Result "1-0"]
[WhiteElo "2362"]
[BlackElo "2097"]
[TimeControl "180+1"]
[EndTime "8:55:44 PDT"]
[Termination "supereagles1201 won on time"]

1. d4 {[%clk 0:03:00.9]} 1... Nf6 {[%clk 0:02:58]} 2. Bg5 {[%clk 0:03:00.3]}
2... d5 {[%clk 0:02:52.1]} 3. e3 {[%clk 0:03:00.4]} 3... Nbd7 {[%clk 0:02:49.9]}
4. Nf3 {[%clk 0:02:59.4]} 4... g6 {[%clk 0:02:50]} 5. Nbd2 {[%clk 0:02:59]} 5...
Bg7 {[%clk 0:02:49.7]} 6. Be2 {[%clk 0:02:57.1]} 6... O-O {[%clk 0:02:49.5]} 7.
O-O {[%clk 0:02:57.2]} 7... c5 {[%clk 0:02:49.3]} 8. c3 {[%clk 0:02:56.2]} 8...
h6 {[%clk 0:02:47.1]} 9. Bh4 {[%clk 0:02:53.7]} 9... b6 {[%clk 0:02:46.7]} 10.
a4 {[%clk 0:02:52.9]} 10... a6 {[%clk 0:02:44.4]} 11. b4 {[%clk 0:02:51.8]}
11... c4 {[%clk 0:02:33.8]} 12. Ne5 {[%clk 0:02:48.9]} 12... Nxe5 {[%clk
0:02:23.7]} 13. dxe5 {[%clk 0:02:49.8]} 13... Nh7 {[%clk 0:02:06.2]} 14. f4
{[%clk 0:02:49]} 14... Qc7 {[%clk 0:01:53.9]} 15. Nf3 {[%clk 0:02:47.4]} 15...
Bf5 {[%clk 0:01:48.1]} 16. Nd4 {[%clk 0:02:46.4]} 16... Be4 {[%clk 0:01:47.4]}
17. Bf3 {[%clk 0:02:40.5]} 17... Bd3 {[%clk 0:01:40]} 18. Bxd5 {[%clk
0:02:39.2]} 18... Bxf1 {[%clk 0:01:38.2]} 19. Bxa8 {[%clk 0:02:38.7]} 19... Bd3
{[%clk 0:01:31.3]} 20. Bf3 {[%clk 0:02:35.6]} 20... g5 {[%clk 0:01:28.3]} 21.
Bg3 {[%clk 0:02:30.7]} 21... e6 {[%clk 0:01:21.1]} 22. Be2 {[%clk 0:02:26.5]}
22... Bg6 {[%clk 0:01:14.5]} 23. Qf1 {[%clk 0:02:23.1]} 23... Rc8 {[%clk
0:00:56.5]} 24. Qf3 {[%clk 0:02:18.6]} 24... Qe7 {[%clk 0:00:50.9]} 25. b5
{[%clk 0:02:14.4]} 25... a5 {[%clk 0:00:48.4]} 26. Bf2 {[%clk 0:02:10.4]} 26...
f6 {[%clk 0:00:34.4]} 27. Nc6 {[%clk 0:02:09.4]} 27... Qf7 {[%clk 0:00:30.7]}
28. Bxc4 {[%clk 0:02:06.5]} 28... fxe5 {[%clk 0:00:28.6]} 29. fxe5 {[%clk
0:02:05.6]} 29... Qxf3 {[%clk 0:00:17.8]} 30. gxf3 {[%clk 0:02:06.5]} 30... Nf8
{[%clk 0:00:16.5]} 31. Rd1 {[%clk 0:02:04.9]} 31... Bh5 {[%clk 0:00:10.8]} 32.
Kg2 {[%clk 0:02:03.4]} 32... Ng6 {[%clk 0:00:06.7]} 33. Bg3 {[%clk 0:02:00.2]}
1-0

[Event "Early-Titled-Tuesday-Blitz-October-17-2023"]
[Site "Chess.com"]
[Date "2023.10.17"]
[Round "5"]
[White "AvitalBor"]
[Black "frederiksvane"]
[Result "1-0"]
[WhiteElo "2840"]
[BlackElo "2908"]
[TimeControl "180+1"]
[EndTime "8:55:56 PDT"]
[Termination "AvitalBor won by checkmate"]

1. e4 {[%clk 0:03:00.9]} 1... c5 {[%clk 0:02:59.2]} 2. c3 {[%clk 0:02:59.7]}
2... e6 {[%clk 0:02:57.6]} 3. d4 {[%clk 0:02:59.9]} 3... d5 {[%clk 0:02:58.3]}
4. exd5 {[%clk 0:03:00]} 4... exd5 {[%clk 0:02:59.2]} 5. Nf3 {[%clk 0:02:57.4]}
5... Nf6 {[%clk 0:02:59.7]} 6. Bb5+ {[%clk 0:02:56]} 6... Bd7 {[%clk 0:03:00.2]}
7. Bxd7+ {[%clk 0:02:43.2]} 7... Nbxd7 {[%clk 0:03:01.1]} 8. O-O {[%clk
0:02:43.3]} 8... Be7 {[%clk 0:03:01.7]} 9. dxc5 {[%clk 0:02:39.5]} 9... Nxc5
{[%clk 0:03:02.5]} 10. Be3 {[%clk 0:02:31.2]} 10... O-O {[%clk 0:03:02.6]} 11.
h3 {[%clk 0:02:29.2]} 11... h6 {[%clk 0:03:02.5]} 12. Nbd2 {[%clk 0:02:29.4]}
12... Re8 {[%clk 0:03:00.5]} 13. Nd4 {[%clk 0:02:21.3]} 13... Qd7 {[%clk
0:02:56.1]} 14. N2b3 {[%clk 0:02:19.3]} 14... Nce4 {[%clk 0:02:56.2]} 15. Qf3
{[%clk 0:02:18.9]} 15... Nd6 {[%clk 0:02:39.5]} 16. Nc5 {[%clk 0:02:13.9]} 16...
Qc8 {[%clk 0:02:39.3]} 17. Nd3 {[%clk 0:02:13.8]} 17... Nfe4 {[%clk 0:02:31.4]}
18. Rad1 {[%clk 0:02:10.3]} 18... Nc4 {[%clk 0:02:25.9]} 19. Nf5 {[%clk
0:02:06.2]} 19... Bf6 {[%clk 0:02:11.1]} 20. Bc1 {[%clk 0:01:41.7]} 20... Qe6
{[%clk 0:01:48.4]} 21. Qg4 {[%clk 0:01:32.7]} 21... Kh7 {[%clk 0:00:21.6]} 22.
Nf4 {[%clk 0:01:30.7]} 22... Qc8 {[%clk 0:00:17.2]} 23. Nxd5 {[%clk 0:01:26]}
23... Re5 {[%clk 0:00:08]} 24. Nxf6+ {[%clk 0:01:24.2]} 24... Nxf6 {[%clk
0:00:08.7]} 25. Qxg7# {[%clk 0:01:24.3]} 1-0

[Event "Early-Titled-Tuesday-Blitz-October-17-2023"]
[Site "Chess.com"]
[Date "2023.10.17"]
[Round "5"]
[White "jcibarra"]
[Black "fu24"]
[Result "1-0"]
[WhiteElo "2897"]
[BlackElo "2661"]
[TimeControl "180+1"]
[EndTime "8:55:57 PDT"]
[Termination "jcibarra won by resignation"]

1. Nf3 {[%clk 0:03:00.1]} 1... g6 {[%clk 0:02:54.5]} 2. e4 {[%clk 0:02:58.9]}
2... Bg7 {[%clk 0:02:50.4]} 3. d4 {[%clk 0:02:58.8]} 3... d6 {[%clk 0:02:50.9]}
4. Bc4 {[%clk 0:02:58.9]} 4... a6 {[%clk 0:02:50.3]} 5. O-O {[%clk 0:02:56.9]}
5... e6 {[%clk 0:02:50.8]} 6. Bb3 {[%clk 0:02:57.1]} 6... Ne7 {[%clk 0:02:50.6]}
7. c3 {[%clk 0:02:57.6]} 7... b6 {[%clk 0:02:50.7]} 8. Bf4 {[%clk 0:02:58]} 8...
Bb7 {[%clk 0:02:51.2]} 9. Nbd2 {[%clk 0:02:58.6]} 9... h6 {[%clk 0:02:51.7]} 10.
h4 {[%clk 0:02:59.2]} 10... Nd7 {[%clk 0:02:52.1]} 11. Re1 {[%clk 0:02:59.5]}
11... e5 {[%clk 0:02:48.5]} 12. Bg3 {[%clk 0:02:56.9]} 12... O-O {[%clk
0:02:46.8]} 13. a4 {[%clk 0:02:47.5]} 13... Kh7 {[%clk 0:02:38.4]} 14. h5 {[%clk
0:02:41.9]} 14... gxh5 {[%clk 0:02:34.2]} 15. Nh4 {[%clk 0:02:29.4]} 15... Nf6
{[%clk 0:02:22.9]} 16. dxe5 {[%clk 0:02:27.1]} 16... dxe5 {[%clk 0:02:23.8]} 17.
Bxe5 {[%clk 0:02:26.9]} 17... Ng6 {[%clk 0:02:24.6]} 18. Bg3 {[%clk 0:02:16.5]}
18... Ng4 {[%clk 0:01:55.1]} 19. Nf5 {[%clk 0:02:10.9]} 19... Bh8 {[%clk
0:01:53.1]} 20. Nf3 {[%clk 0:02:05.3]} 20... N6e5 {[%clk 0:01:39.4]} 21. Nxe5
{[%clk 0:02:03.9]} 21... Bxe5 {[%clk 0:01:37]} 22. Bxe5 {[%clk 0:01:49.6]} 22...
Qxd1 {[%clk 0:01:34.2]} 23. Raxd1 {[%clk 0:01:48.3]} 23... Nxe5 {[%clk
0:01:34.8]} 24. f4 {[%clk 0:01:47.8]} 24... Ng6 {[%clk 0:01:33.3]} 25. Rd7
{[%clk 0:01:47.1]} 25... Nxf4 {[%clk 0:01:21.3]} 26. Bxf7 {[%clk 0:01:39.2]}
26... Kh8 {[%clk 0:01:03.8]} 27. Rxc7 {[%clk 0:01:34.6]} 27... Rab8 {[%clk
0:00:59.1]} 28. Nxh6 {[%clk 0:01:11.9]} 28... Nd3 {[%clk 0:00:52.2]} 29. Bg6
{[%clk 0:01:00.2]} 1-0

[Event "Early-Titled-Tuesday-Blitz-October-17-2023"]
[Site "Chess.com"]
[Date "2023.10.17"]
[Round "5"]
[White "nicolochessit"]
[Black "sterpfi"]
[Result "1-0"]
[WhiteElo "2286"]
[BlackElo "2152"]
[TimeControl "180+1"]
[EndTime "8:56:01 PDT"]
[Termination "nicolochessit won by checkmate"]

1. e4 {[%clk 0:02:58.5]} 1... c6 {[%clk 0:03:00.4]} 2. d4 {[%clk 0:02:57.9]}
2... d5 {[%clk 0:03:01.3]} 3. Nc3 {[%clk 0:02:57.9]} 3... dxe4 {[%clk
0:03:01.6]} 4. Nxe4 {[%clk 0:02:58.8]} 4... Nf6 {[%clk 0:03:01.9]} 5. Nxf6+
{[%clk 0:02:58.3]} 5... exf6 {[%clk 0:03:02.8]} 6. c3 {[%clk 0:02:58.8]} 6...
Bd6 {[%clk 0:03:02.5]} 7. Bd3 {[%clk 0:02:55.6]} 7... O-O {[%clk 0:03:02.4]} 8.
Ne2 {[%clk 0:02:55.5]} 8... Re8 {[%clk 0:03:02]} 9. O-O {[%clk 0:02:55.9]} 9...
Nd7 {[%clk 0:02:59.3]} 10. Nf4 {[%clk 0:02:48.2]} 10... Nf8 {[%clk 0:02:58]} 11.
Qf3 {[%clk 0:02:38.6]} 11... Bd7 {[%clk 0:02:48.8]} 12. Bd2 {[%clk 0:02:29.4]}
12... Qc7 {[%clk 0:02:48.3]} 13. h3 {[%clk 0:02:28.1]} 13... Rad8 {[%clk
0:02:45.4]} 14. Rfe1 {[%clk 0:02:27.4]} 14... c5 {[%clk 0:02:33.9]} 15. Rac1
{[%clk 0:02:17.5]} 15... cxd4 {[%clk 0:02:31.6]} 16. cxd4 {[%clk 0:02:18.4]}
16... Qb6 {[%clk 0:02:31.6]} 17. Nd5 {[%clk 0:02:11.8]} 17... Qxb2 {[%clk
0:02:26.7]} 18. Bc3 {[%clk 0:01:57.4]} 18... Qxa2 {[%clk 0:02:07.8]} 19. Nxf6+
{[%clk 0:01:38.8]} 19... gxf6 {[%clk 0:01:58.8]} 20. Qxf6 {[%clk 0:01:39.7]}
20... Bc6 {[%clk 0:01:36.3]} 21. d5 {[%clk 0:01:35.1]} 21... Be5 {[%clk
0:01:13.5]} 22. Rxe5 {[%clk 0:01:15.8]} 22... Ng6 {[%clk 0:00:11.6]} 23. Rxe8+
{[%clk 0:01:09.8]} 23... Rxe8 {[%clk 0:00:12.5]} 24. Qg7# {[%clk 0:01:09.9]} 1-0

[Event "Early-Titled-Tuesday-Blitz-October-17-2023"]
[Site "Chess.com"]
[Date "2023.10.17"]
[Round "5"]
[White "Ural_bogatyr"]
[Black "Dewarfd"]
[Result "1-0"]
[WhiteElo "2520"]
[BlackElo "2194"]
[TimeControl "180+1"]
[EndTime "8:56:03 PDT"]
[Termination "Ural_bogatyr won by resignation"]

1. d4 {[%clk 0:02:39.7]} 1... Nf6 {[%clk 0:02:58.7]} 2. Nc3 {[%clk 0:02:38.5]}
2... d5 {[%clk 0:02:58.2]} 3. Bf4 {[%clk 0:02:36.1]} 3... Bf5 {[%clk 0:02:56.1]}
4. e3 {[%clk 0:02:31.4]} 4... e6 {[%clk 0:02:55.9]} 5. f3 {[%clk 0:02:31.4]}
5... Bd6 {[%clk 0:02:56.2]} 6. Nge2 {[%clk 0:02:28.8]} 6... O-O {[%clk
0:02:55.7]} 7. g4 {[%clk 0:02:28.4]} 7... Bg6 {[%clk 0:02:52.5]} 8. h4 {[%clk
0:02:28.5]} 8... h5 {[%clk 0:02:47.2]} 9. g5 {[%clk 0:02:26.3]} 9... Nfd7 {[%clk
0:02:31.4]} 10. Bxd6 {[%clk 0:02:24.7]} 10... cxd6 {[%clk 0:02:31.5]} 11. Nf4
{[%clk 0:02:25.6]} 11... Nc6 {[%clk 0:02:05.8]} 12. a3 {[%clk 0:02:02.8]} 12...
a6 {[%clk 0:02:02]} 13. Bd3 {[%clk 0:02:01.4]} 13... Bxd3 {[%clk 0:01:51.2]} 14.
Qxd3 {[%clk 0:02:02.3]} 14... g6 {[%clk 0:01:51.2]} 15. Nxe6 {[%clk 0:01:41.6]}
15... fxe6 {[%clk 0:01:41.3]} 16. Qxg6+ {[%clk 0:01:42]} 16... Kh8 {[%clk
0:01:40.7]} 17. Qh6+ {[%clk 0:01:30.4]} 17... Kg8 {[%clk 0:01:40.7]} 18. Qxe6+
{[%clk 0:01:28.2]} 18... Kh8 {[%clk 0:01:35.5]} 19. Qh6+ {[%clk 0:01:26.2]}
19... Kg8 {[%clk 0:01:35.9]} 20. Qg6+ {[%clk 0:01:26.5]} 20... Kh8 {[%clk
0:01:36]} 21. Qxh5+ {[%clk 0:01:26.8]} 21... Kg8 {[%clk 0:01:36.6]} 22. Qg6+
{[%clk 0:01:16]} 22... Kh8 {[%clk 0:01:36.7]} 23. Nxd5 {[%clk 0:01:03.6]} 23...
Qe8 {[%clk 0:01:21.3]} 24. Qh6+ {[%clk 0:01:01]} 24... Kg8 {[%clk 0:01:21.5]}
25. g6 {[%clk 0:00:55.5]} 25... Nf6 {[%clk 0:01:00.4]} 26. Nxf6+ {[%clk
0:00:52]} 1-0

[Event "Early-Titled-Tuesday-Blitz-October-17-2023"]
[Site "Chess.com"]
[Date "2023.10.17"]
[Round "5"]
[White "NelsonLinda"]
[Black "lamomiajunior"]
[Result "0-1"]
[WhiteElo "2600"]
[BlackElo "2742"]
[TimeControl "180+1"]
[EndTime "8:56:07 PDT"]
[Termination "lamomiajunior won by resignation"]

1. Nf3 {[%clk 0:03:00.9]} 1... d5 {[%clk 0:02:59.8]} 2. b3 {[%clk 0:03:00.7]}
2... c5 {[%clk 0:02:59.7]} 3. Bb2 {[%clk 0:03:00.7]} 3... f6 {[%clk 0:02:59.9]}
4. c4 {[%clk 0:02:22.5]} 4... d4 {[%clk 0:02:59.7]} 5. e3 {[%clk 0:02:22.7]}
5... Nc6 {[%clk 0:03:00]} 6. exd4 {[%clk 0:02:21]} 6... cxd4 {[%clk 0:03:00.9]}
7. g3 {[%clk 0:02:20]} 7... e5 {[%clk 0:03:01.1]} 8. d3 {[%clk 0:02:20]} 8...
Be6 {[%clk 0:02:57.7]} 9. Bg2 {[%clk 0:02:19.9]} 9... Bd6 {[%clk 0:02:57.6]} 10.
O-O {[%clk 0:02:20]} 10... Nge7 {[%clk 0:02:58.3]} 11. Ba3 {[%clk 0:02:19.6]}
11... Bxa3 {[%clk 0:02:54.6]} 12. Nxa3 {[%clk 0:02:20.5]} 12... O-O {[%clk
0:02:55.4]} 13. Nc2 {[%clk 0:02:19.5]} 13... a5 {[%clk 0:02:55.7]} 14. Na3
{[%clk 0:02:19.7]} 14... Qd7 {[%clk 0:02:52]} 15. Nb5 {[%clk 0:02:19.7]} 15...
Ng6 {[%clk 0:02:47]} 16. Re1 {[%clk 0:02:18.3]} 16... Rae8 {[%clk 0:02:45.3]}
17. a3 {[%clk 0:02:16.8]} 17... h6 {[%clk 0:02:42.2]} 18. h4 {[%clk 0:02:07.8]}
18... Bg4 {[%clk 0:02:39.8]} 19. Qb1 {[%clk 0:01:55.6]} 19... f5 {[%clk
0:02:36.9]} 20. Nh2 {[%clk 0:01:54.6]} 20... f4 {[%clk 0:02:33.1]} 21. Nxg4
{[%clk 0:00:56]} 21... Qxg4 {[%clk 0:02:32.9]} 22. Qd1 {[%clk 0:00:51.4]} 22...
Qd7 {[%clk 0:01:59.6]} 23. Qh5 {[%clk 0:00:46.5]} 23... Rf6 {[%clk 0:01:54.7]}
24. Bd5+ {[%clk 0:00:38.6]} 24... Kh8 {[%clk 0:01:54.2]} 25. Rab1 {[%clk
0:00:35.2]} 25... fxg3 {[%clk 0:01:49.1]} 26. fxg3 {[%clk 0:00:36.1]} 26... Qh3
{[%clk 0:01:47.5]} 27. Qe2 {[%clk 0:00:22.6]} 27... Qxg3+ {[%clk 0:01:45.9]} 28.
Qg2 {[%clk 0:00:22.8]} 28... Qxh4 {[%clk 0:01:45.7]} 29. Qh2 {[%clk 0:00:15.6]}
29... Qg4+ {[%clk 0:01:40.9]} 30. Qg2 {[%clk 0:00:15.8]} 30... Qd7 {[%clk
0:01:41.3]} 31. Be4 {[%clk 0:00:12.3]} 31... Nf4 {[%clk 0:01:41.2]} 32. Qg3
{[%clk 0:00:12.3]} 32... Ref8 {[%clk 0:01:40.1]} 33. Rf1 {[%clk 0:00:11.8]}
33... Ne2+ {[%clk 0:01:40.1]} 0-1

[Event "Early-Titled-Tuesday-Blitz-October-17-2023"]
[Site "Chess.com"]
[Date "2023.10.17"]
[Round "5"]
[White "ukchessbomber"]
[Black "GMKrikor"]
[Result "0-1"]
[WhiteElo "2641"]
[BlackElo "2819"]
[TimeControl "180+1"]
[EndTime "8:56:11 PDT"]
[Termination "GMKrikor won by resignation"]

1. b4 {[%clk 0:02:56]} 1... b6 {[%clk 0:02:54.2]} 2. Bb2 {[%clk 0:02:55.7]} 2...
Bb7 {[%clk 0:02:54.6]} 3. e3 {[%clk 0:02:56.2]} 3... Nf6 {[%clk 0:02:50.7]} 4.
Nf3 {[%clk 0:02:56.7]} 4... g6 {[%clk 0:02:48.6]} 5. Be2 {[%clk 0:02:56.8]} 5...
Bg7 {[%clk 0:02:48.7]} 6. O-O {[%clk 0:02:57.7]} 6... O-O {[%clk 0:02:48.2]} 7.
d4 {[%clk 0:02:58.3]} 7... e6 {[%clk 0:02:45.7]} 8. c4 {[%clk 0:02:58.6]} 8...
d5 {[%clk 0:02:40.1]} 9. Nc3 {[%clk 0:02:58.8]} 9... Nbd7 {[%clk 0:02:39.5]} 10.
Qb3 {[%clk 0:02:58.6]} 10... a6 {[%clk 0:02:39.3]} 11. a4 {[%clk 0:02:58]} 11...
Re8 {[%clk 0:02:32.5]} 12. Rac1 {[%clk 0:02:57.8]} 12... c6 {[%clk 0:02:26.5]}
13. Nb1 {[%clk 0:02:49.2]} 13... Ne4 {[%clk 0:02:17.3]} 14. Nbd2 {[%clk
0:02:48.5]} 14... f5 {[%clk 0:02:17.4]} 15. Rfd1 {[%clk 0:02:47.4]} 15... Qe7
{[%clk 0:02:15.4]} 16. b5 {[%clk 0:02:40.8]} 16... axb5 {[%clk 0:02:14.9]} 17.
axb5 {[%clk 0:02:34.2]} 17... c5 {[%clk 0:02:13.4]} 18. cxd5 {[%clk 0:01:59.1]}
18... exd5 {[%clk 0:02:10.8]} 19. dxc5 {[%clk 0:01:58.8]} 19... Ndxc5 {[%clk
0:01:53.1]} 20. Qb4 {[%clk 0:01:58.8]} 20... Ra4 {[%clk 0:01:46.9]} 21. Qxa4
{[%clk 0:01:54.1]} 21... Nxa4 {[%clk 0:01:47.1]} 22. Bxg7 {[%clk 0:01:55]} 22...
Kxg7 {[%clk 0:01:44.5]} 23. Nxe4 {[%clk 0:01:55.4]} 23... dxe4 {[%clk
0:01:41.6]} 24. Nd4 {[%clk 0:01:54.9]} 24... Nc5 {[%clk 0:01:41.6]} 25. h3
{[%clk 0:01:47.2]} 25... h5 {[%clk 0:01:39.7]} 26. Bc4 {[%clk 0:01:38.9]} 26...
Kh6 {[%clk 0:01:31.5]} 27. Ra1 {[%clk 0:01:32.1]} 27... Ra8 {[%clk 0:01:31]} 28.
Rac1 {[%clk 0:01:32.7]} 28... h4 {[%clk 0:01:30.3]} 29. Ne2 {[%clk 0:01:31.5]}
29... Rd8 {[%clk 0:01:29.3]} 30. Nd4 {[%clk 0:01:32]} 30... Qf6 {[%clk 0:01:28]}
31. Ra1 {[%clk 0:01:22.4]} 31... f4 {[%clk 0:01:25.5]} 32. Ra2 {[%clk
0:01:19.2]} 32... f3 {[%clk 0:01:22.3]} 33. g4 {[%clk 0:01:17.7]} 33... hxg3
{[%clk 0:01:22]} 34. fxg3 {[%clk 0:01:17.5]} 34... Ra8 {[%clk 0:01:13.8]} 35.
Rad2 {[%clk 0:01:13.2]} 35... Ra3 {[%clk 0:01:12.4]} 36. Kf2 {[%clk 0:01:12.7]}
36... Rxe3 {[%clk 0:01:00.9]} 0-1

[Event "Early-Titled-Tuesday-Blitz-October-17-2023"]
[Site "Chess.com"]
[Date "2023.10.17"]
[Round "5"]
[White "wanyaland"]
[Black "LamaChampetre"]
[Result "1-0"]
[WhiteElo "2411"]
[BlackElo "2215"]
[TimeControl "180+1"]
[EndTime "8:56:14 PDT"]
[Termination "wanyaland won on time"]

1. d4 {[%clk 0:02:54.3]} 1... Nf6 {[%clk 0:02:44]} 2. c4 {[%clk 0:02:53.5]} 2...
g6 {[%clk 0:02:41.4]} 3. Nc3 {[%clk 0:02:51.7]} 3... d5 {[%clk 0:02:39.7]} 4.
Bf4 {[%clk 0:02:50.7]} 4... Bg7 {[%clk 0:02:39.2]} 5. e3 {[%clk 0:02:49.8]} 5...
O-O {[%clk 0:02:38.7]} 6. Rc1 {[%clk 0:02:48.4]} 6... c5 {[%clk 0:02:39.2]} 7.
dxc5 {[%clk 0:02:48]} 7... Qa5 {[%clk 0:02:37.1]} 8. cxd5 {[%clk 0:02:47]} 8...
Rd8 {[%clk 0:02:31.6]} 9. d6 {[%clk 0:02:32.1]} 9... Nc6 {[%clk 0:02:25.7]} 10.
Nf3 {[%clk 0:02:28.9]} 10... Ne4 {[%clk 0:02:24.6]} 11. Qc2 {[%clk 0:02:22.8]}
11... Nxc3 {[%clk 0:02:02.9]} 12. bxc3 {[%clk 0:02:20.3]} 12... Qxc5 {[%clk
0:02:02.9]} 13. dxe7 {[%clk 0:02:17.9]} 13... Nxe7 {[%clk 0:01:58.3]} 14. Be2
{[%clk 0:02:14]} 14... Bf5 {[%clk 0:01:58.2]} 15. e4 {[%clk 0:02:06.2]} 15...
Nd5 {[%clk 0:01:50]} 16. Bd2 {[%clk 0:02:03.5]} 16... Bxe4 {[%clk 0:00:44]} 17.
Qxe4 {[%clk 0:02:01.7]} 17... Re8 {[%clk 0:00:44.3]} 18. Qd3 {[%clk 0:01:55.3]}
18... Rad8 {[%clk 0:00:22.3]} 19. Nd4 {[%clk 0:01:48.7]} 19... Qe7 {[%clk
0:00:16]} 20. Kf1 {[%clk 0:01:37.6]} 20... a6 {[%clk 0:00:14.5]} 21. Bf3 {[%clk
0:01:36.2]} 21... Nb4 {[%clk 0:00:08.9]} 22. cxb4 {[%clk 0:01:32.7]} 22... Rxd4
{[%clk 0:00:08.9]} 23. Qc2 {[%clk 0:01:28.7]} 23... Red8 {[%clk 0:00:07]} 24.
Be3 {[%clk 0:01:25.2]} 24... Rxb4 {[%clk 0:00:07]} 25. Bc5 {[%clk 0:01:20.9]}
1-0